fUST/lending_fUST_20250914
["ID","MTS","AMOUNT","RATE_DAILY","PERIOD"]
[385386983,1757814574906,939.0,0.00027397,120]
[385387036,1757814632672,-192.072334,0.00019303,2]
[385387039,1757814632682,-192.072334,0.00020515,2]
[385387042,1757814632691,-192.072334,0.00021726,2]
[385387044,1757814632700,-266.034348,0.00023288,2]
[385387046,1757814632709,-188.5028093,0.00023878,2]
[385387047,1757814632719,-171.2842459,0.00024204,2]
[385387049,1757814632727,-8549.1839143,0.00024253,2]
[385387051,1757814632737,-1993.36957659,0.00024253,2]
[385387053,1757814632746,-171.28424587,0.00024295,2]
[385387055,1757814632755,-300.0,0.00024301,2]
[385387057,1757814632764,-1200.0,0.00024301,2]
[385387059,1757814632774,-480.0,0.00024302,3]
[385387061,1757814632783,-558.04,0.00024302,3]
[385387063,1757814632792,-1006.14,0.00024302,3]
[385387065,1757814632802,-1150.3,0.00024302,3]
[385387067,1757814632811,-1961.53,0.00024302,3]
[385387069,1757814632820,-3792.27,0.00024302,3]
[385387071,1757814632829,-224.29515903,0.00024302,3]
[385387073,1757814632838,-483.31432748,0.00024302,3]
[385387075,1757814632848,-8146.64,0.00024302,3]
[385387077,1757814632857,-482.61919903,0.00024302,3]
[385387079,1757814632866,-481.03289597,0.00024302,3]
[385387081,1757814632875,-480.0,0.00024302,3]
[385387083,1757814632884,-480.0,0.00024302,3]
[385387085,1757814632893,-482.97962994,0.00024302,3]
[385387087,1757814632902,-621.87,0.00024302,3]
[385387089,1757814632911,-480.0,0.00024302,3]
[385387091,1757814632920,-481.82214451,0.00024302,3]
[385387093,1757814632929,-5459.24,0.00024302,3]
[385387095,1757814632938,-1303.08,0.00024302,3]
[385387097,1757814632947,-1680.27,0.00024302,3]
[385387099,1757814632957,-595.62,0.00024302,3]
[385387101,1757814632966,-541.27,0.00024302,3]
[385387103,1757814632976,-3000.5,0.00024302,3]
[385387105,1757814632985,-480.0,0.00024302,3]
[385387107,1757814632994,-480.0,0.00024303,3]
[385387108,1757814633003,-323.35369706,0.00024303,3]
[385387112,1757814633024,-156.64630294,0.00024303,3]
[385387113,1757814633033,-482.44707562,0.00024303,3]
[385387114,1757814633042,-839.53281384,0.00024303,3]
[385387115,1757814633054,-17.57718616,0.00024303,3]
[385387116,1757814633063,-431.20509827,0.00024303,3]
[385387117,1757814633082,-48.79490173,0.00024303,3]
[385387118,1757814633092,-484.93874966,0.00024303,3]
[385387119,1757814633101,-549.12010781,0.00024303,3]
[385387120,1757814633114,-480.0,0.00024303,3]
[385387121,1757814633124,-366.42800452,0.00024303,3]
[385387122,1757814633133,-480.0,0.00024303,3]
[385387123,1757814633144,-480.0,0.00024303,3]
[385387124,1757814633155,-480.0,0.00024303,3]
[385387125,1757814633164,-480.0,0.00024303,3]
[385387126,1757814633173,-2779.98651847,0.00024303,3]
[385387133,1757814638588,-480.0,0.00024302,3]
[385387134,1757814638599,-2496.91348153,0.00024303,3]
[385387135,1757814638609,-481.17012387,0.00024303,3]
[385387136,1757814638619,-481.75661249,0.00024303,3]
[385387137,1757814638629,-480.0,0.00024303,3]
[385387138,1757814638638,-4142.56,0.00024303,3]
[385387139,1757814638647,-589.08731957,0.00024303,3]
[385387140,1757814638656,-482.45320436,0.00024303,3]
[385387141,1757814638664,-1508.86,0.00024303,3]
[385387142,1757814638673,-432.04224771,0.00024303,3]
[385387143,1757814638683,-970.3,0.00024303,3]
[385387144,1757814638692,-480.0,0.00024303,3]
[385387145,1757814638701,-480.0,0.00024303,3]
[385387146,1757814638710,-480.0,0.00024303,3]
[385387147,1757814638720,-480.0,0.00024303,3]
[385387148,1757814638729,-3140.87,0.00024303,3]
[385387149,1757814638738,-480.0,0.00024303,3]
[385387150,1757814638747,-480.0,0.00024303,3]
[385387151,1757814638756,-1251.7,0.00024303,3]
[385387152,1757814638765,-482.72074697,0.00024303,3]
[385387153,1757814638774,-480.0,0.00024303,3]
[385387154,1757814638783,-480.0,0.00024303,3]
[385387155,1757814638792,-222.97910956,0.00024303,3]
[385387156,1757814638801,-488.01196627,0.00024303,3]
[385387157,1757814638810,-482.37889777,0.00024303,3]
[385387158,1757814638820,-1516.07,0.00024303,3]
[385387159,1757814638829,-480.0,0.00024303,3]
[385387160,1757814638838,-412.97695169,0.00024303,3]
[385387161,1757814638847,-481.97688534,0.00024303,3]
[385387162,1757814638856,-480.0,0.00024303,3]
[385387163,1757814638864,-597.96,0.00024303,3]
[385387164,1757814638875,-286.93160347,0.00024303,3]
[385387165,1757814638891,-194.56317888,0.00024303,3]
[385387166,1757814638900,-290.97554746,0.00024303,3]
[385387167,1757814638909,-631.77,0.00024303,3]
[385387168,1757814638918,-1128.32710606,0.00024303,3]
[385387169,1757814638928,-331.03289394,0.00024303,3]
[385387170,1757814638937,-579.39917588,0.00024303,3]
[385387171,1757814638949,-1088.09082412,0.00024303,3]
[385387172,1757814638958,-975.87,0.00024303,3]
[385387173,1757814638967,-487.08665698,0.00024303,3]
[385387174,1757814639052,-23.48334302,0.00024303,3]
[385387175,1757814639219,-480.0,0.00024303,3]
[385387176,1757814639230,-481.19479824,0.00024303,3]
[385387177,1757814639240,-2435.24,0.00024303,3]
[385387178,1757814639249,-481.58404463,0.00024303,3]
[385387179,1757814639258,-590.80609462,0.00024303,3]
[385387180,1757814639268,-480.0,0.00024303,3]
[385387181,1757814639278,-500.0,0.00024303,2]
[385387182,1757814639287,-624.37433961,0.00024303,2]
[385387183,1757814639296,-500.0,0.00024303,2]
[385387184,1757814639308,-500.0,0.00024303,2]
[385387185,1757814639318,-500.0,0.00024303,2]
[385387186,1757814639327,-500.0,0.00024303,2]
[385387187,1757814639336,-500.0,0.00024303,2]
[385387188,1757814639345,-500.0,0.00024303,2]
[385387189,1757814639354,-180.97165216,0.00024303,2]
[385387190,1757814639364,-500.0,0.00024303,2]
[385387191,1757814639373,-500.0,0.00024303,2]
[385387192,1757814639383,-500.0,0.00024303,2]
[385387193,1757814639393,-634.48322868,0.00024303,2]
[385387194,1757814639402,-500.0,0.00024303,2]
[385387195,1757814639411,-500.0,0.00024303,2]
[385387196,1757814639420,-189.01010817,0.00024303,2]
[385387197,1757814639429,-472.06635305,0.00024303,3]
[385387198,1757814639439,-482.94341935,0.00024303,3]
[385387199,1757814639448,-500.59740895,0.00024303,3]
[385387200,1757814639457,-693.38,0.00024303,3]
[385387201,1757814639466,-480.0,0.00024303,3]
[385387202,1757814639474,-678.04,0.00024303,3]
[385387203,1757814639483,-480.0,0.00024303,3]
[385387204,1757814639492,-480.0,0.00024303,3]
[385387205,1757814639501,-480.0,0.00024303,3]
[385387206,1757814639510,-481.24578239,0.00024303,3]
[385387207,1757814639519,-480.0,0.00024303,3]
[385387208,1757814639528,-1608.55,0.00024303,3]
[385387209,1757814639537,-481.49061606,0.00024303,3]
[385387210,1757814639550,-484.92443168,0.00024303,3]
[385387211,1757814639559,-480.0,0.00024303,3]
[385387212,1757814639568,-480.0,0.00024303,3]
[385387213,1757814639577,-482.82564712,0.00024303,3]
[385387214,1757814639586,-1751.41,0.00024303,3]
[385387215,1757814639595,-483.29996879,0.00024303,3]
[385387216,1757814639604,-2590.89,0.00024303,3]
[385387217,1757814639613,-484.33239953,0.00024303,3]
[385387218,1757814639622,-480.0,0.00024303,3]
[385387219,1757814639632,-480.0,0.00024303,3]
[385387220,1757814639641,-503.9,0.00024303,3]
[385387221,1757814639650,-482.20864548,0.00024303,3]
[385387222,1757814639659,-482.16844285,0.00024303,3]
[385387223,1757814639668,-480.0,0.00024303,3]
[385387224,1757814639677,-480.0,0.00024303,3]
[385387225,1757814639686,-309.70242987,0.00024303,2]
[385387226,1757814639695,-480.0,0.00024303,3]
[385387227,1757814639704,-484.50239904,0.00024303,3]
[385387228,1757814639713,-480.0,0.00024303,3]
[385387229,1757814639723,-480.0,0.00024303,3]
[385387230,1757814639732,-250.98636208,0.00024303,3]
[385387231,1757814639741,-480.0,0.00024303,3]
[385387232,1757814639752,-641.73,0.00024303,3]
[385387233,1757814639762,-480.0,0.00024303,3]
[385387234,1757814639771,-480.0,0.00024303,3]
[385387235,1757814639780,-482.04851341,0.00024303,3]
[385387236,1757814639789,-480.0,0.00024303,3]
[385387237,1757814639798,-480.0,0.00024303,3]
[385387238,1757814639809,-461.19956223,0.00024303,3]
[385387239,1757814639819,-481.82805936,0.00024303,3]
[385387240,1757814639827,-480.0,0.00024303,3]
[385387241,1757814639836,-622.51,0.00024303,3]
[385387242,1757814639845,-287.81850092,0.00024303,3]
[385387243,1757814639855,-483.96007271,0.00024303,3]
[385387244,1757814639864,-485.61222678,0.00024303,3]
[385387245,1757814639874,-480.0,0.00024303,3]
[385387246,1757814639883,-618.81076839,0.00024303,3]
[385387247,1757814639893,-482.38387632,0.00024303,3]
[385387248,1757814639902,-480.0,0.00024303,3]
[385387249,1757814639911,-465.2109493,0.00024303,3]
[385387250,1757814639921,-984.65,0.00024303,3]
[385387251,1757814639930,-481.46243418,0.00024303,3]
[385387252,1757814639939,-14789.06,0.00024303,3]
[385387253,1757814639948,-480.0,0.00024303,3]
[385387254,1757814639957,-480.0,0.00024303,3]
[385387255,1757814639967,-480.0,0.00024303,3]
[385387256,1757814639976,-480.0,0.00024304,3]
[385387257,1757814639986,-480.82059812,0.00024304,3]
[385387258,1757814639995,-480.0,0.00024304,3]
[385387260,1757814640004,-480.0,0.00024304,3]
[385387261,1757814640013,-481.04524189,0.00024304,3]
[385387262,1757814640022,-480.72800956,0.00024304,3]
[385387263,1757814640032,-480.0,0.00024304,3]
[385387265,1757814640041,-480.0,0.00024304,3]
[385387267,1757814640052,-480.0,0.00024304,3]
[385387268,1757814640060,-480.0,0.00024304,3]
[385387269,1757814640070,-480.0,0.00024304,3]
[385387270,1757814640079,-480.0,0.00024304,3]
[385387271,1757814640088,-542.15211893,0.00024304,3]
[385387272,1757814640097,-1022.17,0.00024304,3]
[385387273,1757814640109,-480.0,0.00024304,3]
[385387275,1757814640118,-1142.53,0.00024304,3]
[385387277,1757814640127,-808.72,0.00024304,3]
[385387278,1757814640140,-481.13565332,0.00024304,3]
[385387279,1757814640150,-481.33194263,0.00024304,3]
[385387280,1757814640160,-480.81625016,0.00024304,3]
[385387281,1757814640173,-480.0,0.00024304,3]
[385387282,1757814640184,-480.0,0.00024304,3]
[385387283,1757814640193,-481.0155843,0.00024304,3]
[385387284,1757814640203,-480.0,0.00024304,3]
[385387285,1757814640212,-635.79,0.00024304,3]
[385387286,1757814640221,-501.6511801,0.00024304,3]
[385387287,1757814640230,-480.0,0.00024304,3]
[385387288,1757814640240,-591.05,0.00024304,3]
[385387289,1757814640249,-480.0,0.00024304,3]
[385387290,1757814640258,-1294.91,0.00024304,3]
[385387291,1757814640267,-480.0,0.00024304,3]
[385387292,1757814640276,-917.31,0.00024304,3]
[385387293,1757814640285,-856.58,0.00024304,3]
[385387294,1757814640294,-480.0,0.00024304,3]
[385387295,1757814640304,-484.3430098,0.00024304,3]
[385387296,1757814640313,-853.39,0.00024304,3]
[385387297,1757814640322,-837.76,0.00024304,3]
[385387298,1757814640332,-480.0,0.00024304,3]
[385387299,1757814640341,-480.0,0.00024304,3]
[385387300,1757814640350,-1044.88,0.00024304,3]
[385387301,1757814640358,-480.0,0.00024304,3]
[385387302,1757814640368,-483.51888909,0.00024304,3]
[385387303,1757814640377,-480.65402998,0.00024304,3]
[385387304,1757814640386,-431.35223967,0.00024304,3]
[385387305,1757814640395,-480.0,0.00024304,3]
[385387306,1757814640404,-484.9834479,0.00024304,3]
[385387307,1757814640414,-480.0,0.00024304,3]
[385387308,1757814640423,-482.83185941,0.00024304,3]
[385387309,1757814640432,-483.40158179,0.00024304,3]
[385387310,1757814640441,-480.0,0.00024304,3]
[385387311,1757814640450,-480.0,0.00024304,3]
[385387312,1757814640459,-480.0,0.00024304,3]
[385387313,1757814640469,-480.0,0.00024304,3]
[385387314,1757814640478,-518.54,0.00024304,3]
[385387315,1757814640487,-1180.09,0.00024304,3]
[385387316,1757814640496,-480.0,0.00024304,3]
[385387317,1757814640505,-481.28023811,0.00024304,3]
[385387318,1757814640514,-484.0,0.00024304,3]
[385387319,1757814640523,-480.0,0.00024304,3]
[385387320,1757814640532,-739.48,0.00024304,3]
[385387321,1757814640541,-480.0,0.00024304,3]
[385387322,1757814640552,-480.65133567,0.00024304,3]
[385387323,1757814640561,-485.88526248,0.00024304,3]
[385387324,1757814640570,-481.58705479,0.00024304,3]
[385387325,1757814640580,-484.28623453,0.00024304,3]
[385387326,1757814640590,-675.3,0.00024304,3]
[385387327,1757814640600,-627.16,0.00024304,3]
[385387328,1757814640609,-482.86931658,0.00024304,3]
[385387329,1757814640618,-775.9,0.00024304,3]
[385387330,1757814640627,-585.49,0.00024304,3]
[385387331,1757814640637,-2424.6,0.00024304,3]
[385387332,1757814640647,-480.0,0.00024304,3]
[385387333,1757814640656,-975.74,0.00024304,3]
[385387334,1757814640666,-481.36637865,0.00024304,3]
[385387335,1757814640675,-483.41111035,0.00024304,3]
[385387336,1757814640685,-482.61470522,0.00024304,3]
[385387337,1757814640693,-480.0,0.00024304,3]
[385387338,1757814640702,-480.0,0.00024304,3]
[385387339,1757814640712,-866.02,0.00024304,3]
[385387340,1757814640721,-480.0,0.00024304,3]
[385387341,1757814640730,-480.87140588,0.00024304,3]
[385387342,1757814640739,-4685.55,0.00024304,3]
[385387343,1757814640749,-481.446963,0.00024304,3]
[385387344,1757814640759,-933.13,0.00024304,3]
[385387345,1757814640769,-484.47056948,0.00024304,3]
[385387346,1757814640778,-481.68346175,0.00024304,3]
[385387347,1757814640788,-1261.21,0.00024304,3]
[385387348,1757814640797,-497.62579836,0.00024304,3]
[385387349,1757814640806,-683.65,0.00024304,3]
[385387350,1757814640816,-483.80191028,0.00024304,3]
[385387351,1757814640825,-1116.04,0.00024304,3]
[385387352,1757814640835,-1063.46,0.00024304,3]
[385387353,1757814640844,-480.0,0.00024304,3]
[385387354,1757814640854,-500.62,0.00024304,3]
[385387355,1757814640863,-480.0,0.00024304,3]
[385387356,1757814640872,-482.02621119,0.00024304,3]
[385387357,1757814640882,-3474.72,0.00024304,3]
[385387358,1757814640891,-30458.81,0.00024304,3]
[385387359,1757814640901,-480.0,0.00024304,3]
[385387360,1757814640911,-480.0,0.00024304,3]
[385387361,1757814640921,-480.0,0.00024304,3]
[385387362,1757814640930,-768.23,0.00024304,3]
[385387363,1757814640940,-1724.65,0.00024304,3]
[385387364,1757814640949,-1277.32,0.00024304,3]
[385387365,1757814640959,-481.62791636,0.00024304,3]
[385387366,1757814640968,-480.0,0.00024304,3]
[385387367,1757814640977,-481.66496268,0.00024304,3]
[385387368,1757814640986,-481.91232468,0.00024304,3]
[385387369,1757814640996,-3264.2,0.00024304,3]
[385387370,1757814641006,-8103.04,0.00024304,3]
[385387371,1757814641015,-756.04,0.00024304,3]
[385387372,1757814641024,-480.0,0.00024304,3]
[385387373,1757814641034,-527.01708244,0.00024304,3]
[385387374,1757814641044,-703.75,0.00024304,3]
[385387375,1757814641055,-3889.18,0.00024304,3]
[385387376,1757814641064,-629.47,0.00024304,3]
[385387377,1757814641073,-484.87477722,0.00024304,3]
[385387378,1757814641083,-663.65,0.00024304,3]
[385387379,1757814641092,-1113.63,0.00024304,3]
[385387380,1757814641101,-2499.93,0.00024304,3]
[385387381,1757814641115,-480.0,0.00024304,3]
[385387382,1757814641124,-458.53975696,0.00024304,3]
[385387383,1757814641133,-480.0,0.00024304,3]
[385387384,1757814641142,-159.27446294,0.00024304,3]
[385387385,1757814641153,-480.0,0.00024304,3]
[385387386,1757814641162,-480.0,0.00024304,3]
[385387387,1757814641171,-1554.75,0.00024304,3]
[385387388,1757814641181,-4503.39,0.00024304,3]
[385387389,1757814641190,-492.06053607,0.00024304,3]
[385387390,1757814641200,-1052.54,0.00024304,3]
[385387391,1757814641209,-562.46450096,0.00024304,3]
[385387392,1757814641218,-685.82,0.00024304,3]
[385387393,1757814641228,-480.0,0.00024304,3]
[385387394,1757814641237,-480.0,0.00024304,3]
[385387395,1757814641246,-918.22,0.00024304,3]
[385387396,1757814641255,-4023.70582825,0.00024304,2]
[385387397,1757814641264,-430.04647572,0.00024304,2]
[385387398,1757814641274,-4023.70582825,0.00024304,2]
[385387399,1757814641283,-4023.70582825,0.00024304,2]
[385387400,1757814641292,-206.99482748,0.00024304,2]
[385387401,1757814641302,-4023.70582825,0.00024304,2]
[385387402,1757814641311,-4023.70582825,0.00024304,2]
[385387403,1757814641320,-4023.70582825,0.00024304,2]
[385387404,1757814641329,-4023.70582825,0.00024304,2]
[385387405,1757814641338,-4023.70582825,0.00024304,2]
[385387406,1757814641347,-4023.70582825,0.00024304,2]
[385387407,1757814641357,-4023.70582825,0.00024304,2]
[385387408,1757814641366,-4023.70582825,0.00024304,2]
[385387409,1757814641375,-4023.70582825,0.00024304,2]
[385387410,1757814641384,-4023.70582825,0.00024304,2]
[385387411,1757814641394,-4023.70582825,0.00024304,2]
[385387412,1757814641403,-4023.70582825,0.00024304,2]
[385387413,1757814641412,-4023.70582825,0.00024304,2]
[385387414,1757814641422,-555.83620279,0.00024305,2]
[385387415,1757814641431,-165.8031101,0.00024305,2]
[385387416,1757814641440,-21982.0357261,0.00024305,2]
[385387417,1757814641449,-1976.4720995,0.00024305,2]
[385387418,1757814641458,-13756.2308842,0.00024342,2]
[385387419,1757814641467,-500.0,0.00024342,2]
[385387420,1757814641476,-500.0,0.00024342,2]
[385387421,1757814641485,-500.0,0.00024342,2]
[385387422,1757814641495,-500.0,0.00024342,2]
[385387423,1757814641504,-203.72023961,0.00024342,2]
[385387424,1757814641514,-480.0,0.00024354,3]
[385387425,1757814641523,-1598.63,0.00024354,3]
[385387426,1757814641532,-482.28320708,0.00024354,3]
[385387427,1757814641541,-480.0,0.00024354,3]
[385387428,1757814641551,-480.37581035,0.00024354,3]
[385387429,1757814641560,-480.0,0.00024354,3]
[385387430,1757814641569,-480.0,0.00024354,3]
[385387431,1757814641578,-535.60730597,0.00024354,3]
[385387432,1757814641587,-649.1,0.00024354,3]
[385387433,1757814641596,-480.0,0.00024354,3]
[385387434,1757814641605,-481.62962375,0.00024354,3]
[385387435,1757814641615,-480.53443976,0.00024354,3]
[385387436,1757814641624,-200.0,0.00024354,3]
[385387437,1757814641633,-502.33,0.00024354,3]
[385387438,1757814641642,-408.34195034,0.00024354,3]
[385387439,1757814641651,-480.0,0.00024354,3]
[385387440,1757814641660,-481.12856474,0.00024354,3]
[385387441,1757814641670,-480.0,0.00024354,3]
[385387442,1757814641679,-480.0,0.00024354,3]
[385387443,1757814641688,-480.0,0.00024354,3]
[385387444,1757814641698,-484.31019546,0.00024354,3]
[385387445,1757814641707,-504.70281282,0.00024354,3]
[385387446,1757814641716,-863.03,0.00024354,3]
[385387447,1757814641725,-480.0,0.00024354,3]
[385387448,1757814641734,-499.23254459,0.00024354,3]
[385387449,1757814641743,-480.0,0.00024354,3]
[385387450,1757814641753,-745.91,0.00024354,3]
[385387451,1757814641762,-480.0,0.00024354,3]
[385387452,1757814641771,-484.87064961,0.00024354,3]
[385387453,1757814641780,-480.0,0.00024354,3]
[385387454,1757814641789,-480.0,0.00024354,3]
[385387455,1757814641798,-483.43646829,0.00024354,3]
[385387456,1757814641808,-482.00552604,0.00024354,3]
[385387457,1757814641817,-481.41764062,0.00024354,3]
[385387458,1757814641826,-481.60137275,0.00024354,3]
[385387459,1757814641835,-482.02971492,0.00024354,3]
[385387460,1757814641845,-482.05845515,0.00024354,3]
[385387461,1757814641854,-480.0,0.00024354,3]
[385387462,1757814641863,-481.43481119,0.00024354,3]
[385387463,1757814641873,-484.15678517,0.00024354,3]
[385387464,1757814641882,-552.98,0.00024354,3]
[385387465,1757814641892,-500.0,0.00024354,3]
[385387466,1757814641901,-503.1854649,0.00024354,2]
[385387467,1757814641910,-483.20577612,0.00024354,3]
[385387468,1757814641920,-484.0751413,0.00024354,3]
[385387469,1757814641929,-480.0,0.00024354,3]
[385387470,1757814641939,-480.0,0.00024354,3]
[385387471,1757814641948,-502.43277478,0.00024354,3]
[385387472,1757814641958,-482.83035163,0.00024354,3]
[385387473,1757814641967,-482.40764191,0.00024354,3]
[385387474,1757814641976,-483.58916848,0.00024354,3]
[385387475,1757814641985,-2307.7,0.00024354,3]
[385387476,1757814641994,-482.2570987,0.00024354,3]
[385387477,1757814642003,-485.53130095,0.00024354,3]
[385387478,1757814642013,-481.45969319,0.00024354,3]
[385387479,1757814642023,-481.75616855,0.00024354,3]
[385387480,1757814642032,-480.0,0.00024354,3]
[385387481,1757814642041,-480.0,0.00024354,3]
[385387482,1757814642050,-480.0,0.00024354,3]
[385387483,1757814642060,-483.67160513,0.00024354,3]
[385387484,1757814642069,-483.12517427,0.00024354,3]
[385387485,1757814642078,-480.0,0.00024354,3]
[385387486,1757814642088,-485.8980988,0.00024354,3]
[385387487,1757814642101,-480.0,0.00024354,3]
[385387488,1757814642114,-480.0,0.00024354,3]
[385387489,1757814642124,-487.19694005,0.00024354,3]
[385387490,1757814642133,-242.80310033,0.00024354,3]
[385387491,1757814642143,-604.00336561,0.00024354,3]
[385387492,1757814642153,-483.60523524,0.00024354,3]
[385387493,1757814642162,-480.0,0.00024354,3]
[385387494,1757814642171,-480.0,0.00024354,3]
[385387495,1757814642181,-164.91538762,0.00024354,3]
[385387496,1757814642199,-287.97514977,0.00024354,3]
[385387497,1757814642208,-480.0,0.00024354,3]
[385387498,1757814642218,-481.67476295,0.00024354,3]
[385387499,1757814642227,-481.66589693,0.00024354,3]
[385387500,1757814642237,-480.0,0.00024354,3]
[385387501,1757814642246,-484.99624479,0.00024354,3]
[385387502,1757814642255,-484.71344967,0.00024354,3]
[385387503,1757814642265,-482.68392375,0.00024354,3]
[385387504,1757814642275,-484.64975207,0.00024354,3]
[385387505,1757814642284,-307.18773335,0.00024354,3]
[385387506,1757814642293,-485.19119433,0.00024354,3]
[385387507,1757814642303,-486.11814152,0.00024354,3]
[385387508,1757814642312,-480.52533694,0.00024354,3]
[385387509,1757814642321,-480.0,0.00024354,3]
[385387510,1757814642331,-482.33201129,0.00024354,3]
[385387511,1757814642340,-480.0,0.00024354,3]
[385387512,1757814642349,-484.19401633,0.00024354,3]
[385387513,1757814642358,-480.0,0.00024354,3]
[385387514,1757814642367,-480.0,0.00024354,3]
[385387515,1757814642377,-480.0,0.00024354,3]
[385387516,1757814642386,-480.0,0.00024354,3]
[385387517,1757814642523,-480.0,0.00024354,3]
[385387518,1757814642532,-480.0,0.00024354,3]
[385387519,1757814642542,-482.41469322,0.00024354,3]
[385387520,1757814642552,-482.80293699,0.00024354,3]
[385387521,1757814642561,-480.60291513,0.00024354,3]
[385387522,1757814642570,-481.97971066,0.00024354,3]
[385387523,1757814642579,-480.0,0.00024354,3]
[385387524,1757814642589,-481.8863617,0.00024354,3]
[385387525,1757814642598,-482.45242761,0.00024354,3]
[385387526,1757814642607,-484.47803126,0.00024354,3]
[385387527,1757814642616,-480.0,0.00024354,3]
[385387528,1757814642625,-480.0,0.00024354,3]
[385387529,1757814642635,-190.77827306,0.00024354,3]
[385387530,1757814642644,-480.8367856,0.00024354,3]
[385387531,1757814642654,-480.0,0.00024354,3]
[385387532,1757814642663,-483.49028535,0.00024354,3]
[385387533,1757814642672,-480.0,0.00024354,3]
[385387534,1757814642681,-480.0,0.00024354,3]
[385387535,1757814642691,-530.91257089,0.00024354,3]
[385387536,1757814642700,-480.0,0.00024354,3]
[385387537,1757814642709,-319.03867887,0.00024354,3]
[385387538,1757814642719,-480.65700055,0.00024354,3]
[385387539,1757814642728,-480.0,0.00024354,3]
[385387540,1757814642737,-483.49309034,0.00024354,3]
[385387541,1757814642746,-485.32675187,0.00024354,3]
[385387542,1757814642755,-480.0,0.00024354,3]
[385387543,1757814642765,-221.3017314,0.00024354,3]
[385387544,1757814642774,-1219.61,0.00024354,3]
[385387545,1757814642783,-480.0,0.00024354,3]
[385387546,1757814642793,-781.87,0.00024354,3]
[385387547,1757814642804,-480.48964563,0.00024354,3]
[385387548,1757814642815,-480.0,0.00024354,3]
[385387549,1757814642824,-157.566507,0.00024354,3]
[385387550,1757814642833,-481.01509634,0.00024354,3]
[385387551,1757814642842,-485.16388676,0.00024354,3]
[385387552,1757814642852,-480.0,0.00024354,3]
[385387553,1757814642861,-485.62340014,0.00024354,3]
[385387554,1757814642870,-283.71324202,0.00024354,3]
[385387555,1757814643031,-196.28675798,0.00024354,3]
[385387556,1757814643041,-482.03342986,0.00024354,3]
[385387557,1757814643051,-802.25,0.00024354,3]
[385387558,1757814643061,-23.68742445,0.00024354,3]
[385387560,1757814643079,-461.0494374,0.00024354,3]
[385387561,1757814643089,-486.66025744,0.00024354,3]
[385387562,1757814643098,-524.32559273,0.00024354,3]
[385387564,1757814643111,-258.71201002,0.00024354,3]
[385387566,1757814643120,-482.12462687,0.00024354,3]
[385387568,1757814643130,-481.29153669,0.00024354,3]
[385387570,1757814643139,-482.03015055,0.00024354,3]
[385387572,1757814643149,-280.58352812,0.00024354,3]
[385387574,1757814643160,-205.767373,0.00024354,3]
[385387575,1757814643170,-478.75143217,0.00024354,3]
[385387576,1757814643181,-91.375623,0.00024354,3]
[385387577,1757814643192,-481.72495354,0.00024354,3]
[385387578,1757814643201,-480.0,0.00024354,3]
[385387579,1757814643215,-481.35621916,0.00024354,3]
[385387580,1757814643225,-481.1335089,0.00024354,3]
[385387581,1757814643235,-453.80718359,0.00024354,3]
[385387594,1757814644792,-0.02568944,0.00024354,3]
[385387595,1757814644804,-28.12707746,0.00024354,3]
[385387596,1757814644814,-483.14578843,0.00024354,3]
[385387597,1757814644823,-485.24895974,0.00024354,3]
[385387598,1757814644832,-481.72547651,0.00024354,3]
[385387599,1757814644841,-482.62818182,0.00024354,3]
[385387600,1757814644850,-482.06155158,0.00024354,3]
[385387601,1757814644860,-482.83182895,0.00024354,3]
[385387602,1757814644869,-484.82052761,0.00024354,3]
[385387603,1757814644879,-484.45067207,0.00024354,3]